fUST/lending_fUST_20241016
["ID","MTS","AMOUNT","RATE_DAILY","PERIOD"]
[340338173,1729063848266,-500.0,0.00019989,2]
[340338174,1729063848276,-327.72210486,0.00019989,2]
[340338181,1729064104910,150.0,0.00027,60]
[340338182,1729064342250,150.5,0.0001997,120]
[340338183,1729064342725,150.5,0.0001996,120]
[340338184,1729064343331,150.5,0.0001995,120]
[340338185,1729064371963,328.036924,0.00027,60]
[340338186,1729064381247,328.036924,0.00027,60]
[340338187,1729064389120,328.036924,0.00027,60]
[340338188,1729064430194,328.036924,0.00027,60]
[340338189,1729064438135,328.036924,0.00027,60]
[340338192,1729064522585,-300.0,0.00018425,2]
[340338193,1729064522629,-24900.0,0.00018426,2]
[340338194,1729064522673,-218.450856,0.00018711,2]
[340338195,1729064522716,-163.063464,0.00019099,2]
[340338196,1729064522759,-163.063464,0.00019298,2]
[340338197,1729064522802,-163.063464,0.00019497,2]
[340338198,1729064522843,-163.063464,0.00019696,2]
[340338199,1729064522885,-1015.02723349,0.00019879,2]
[340338200,1729064522928,-244.61336351,0.00019889,2]
[340338201,1729064522972,-163.063464,0.00019895,2]
[340338202,1729064523014,-845.09,0.0001997,3]
[340338203,1729064523056,-422.54,0.0001997,3]
[340338204,1729064523098,-211.27,0.0001997,3]
[340338205,1729064523140,-633.86,0.0001997,3]
[340338206,1729064523182,-500.0,0.00019973,2]
[340338207,1729064523227,-500.0,0.00019973,2]
[340338208,1729064523269,-500.0,0.00019973,2]
[340338209,1729064523313,-428.67777519,0.00019973,2]
[340338210,1729064523355,-500.0,0.00019973,2]
[340338211,1729064523402,-500.0,0.00019979,2]
[340338212,1729064523448,-500.0,0.00019979,2]
[340338213,1729064523493,-500.0,0.00019979,2]
[340338214,1729064523538,-500.0,0.00019979,2]
[340338215,1729064523584,-500.0,0.00019979,2]
[340338216,1729064523629,-500.0,0.00019979,2]
[340338217,1729064523673,-500.0,0.00019979,2]
[340338218,1729064523719,-500.0,0.00019979,2]
[340338219,1729064523763,-500.0,0.00019979,2]
[340338220,1729064523807,-500.0,0.00019979,2]
[340338221,1729064523851,-500.0,0.00019979,2]
[340338222,1729064523896,-500.0,0.00019979,2]
[340338223,1729064523941,-500.0,0.00019979,2]
[340338224,1729064523986,-500.0,0.00019979,2]
[340338225,1729064524033,-201.27364741,0.00019979,2]
[340338226,1729064524077,-500.0,0.00019979,2]
[340338227,1729064524121,-500.0,0.00019979,2]
[340338228,1729064524169,-500.0,0.00019979,2]
[340338229,1729064524218,-500.0,0.00019979,2]
[340338230,1729064524267,-500.0,0.00019979,2]
[340338231,1729064524312,-441.11388206,0.00019979,2]
[340338232,1729064524357,-239.69764473,0.00019979,2]
[340338233,1729064524402,-194.45400436,0.00019979,2]
[340338234,1729064524448,-202.31193313,0.00019979,2]
[340338235,1729064524493,-67989.8843175,0.0001998,3]
[340338236,1729064524537,-31954.41802262,0.0001998,3]
[340338237,1729064547067,-300.0,0.00018425,2]
[340338238,1729064547107,-72.0,0.00019888,2]
[340338239,1729064673568,166.0,0.000201,120]
[340338240,1729064674018,166.0,0.0002219,120]
[340338241,1729064674568,166.0,0.0002428,120]
[340338242,1729064675072,166.0,0.0002637,120]
[340338243,1729064829492,30000.0,0.00027,60]
[340338507,1729065043418,-166.0,0.0001818,7]
[340338508,1729065043429,-300.0,0.00018722,2]
[340338509,1729065043439,-300.0,0.00018722,2]
[340338510,1729065043449,-12453.0678036,0.00018723,2]
[340338514,1729065341917,1000.0,0.00027,60]
[340338515,1729065381680,1000.0,0.0002,12]
[340338517,1729065465335,207.0,0.00027,60]
[340338518,1729065534577,43639.0,0.00027,60]
[340338520,1729065653738,300.5701421,0.00027,60]
[340338524,1729065757732,157.0,0.000201,120]
[340338525,1729065758326,157.0,0.0002268,120]
[340338526,1729065758844,157.0,0.0002526,120]
[340338584,1729066232493,-300.0,0.00018,2]
[340338586,1729066232502,-157.0,0.0001818,7]
[340338588,1729066232512,-218.450856,0.00018211,2]
[340338590,1729066232523,-300.0,0.00018434,2]
[340338592,1729066232535,-300.0,0.00018434,2]
[340338594,1729066232545,-911.12855267,0.00018435,2]
[340338619,1729066238094,150.0,0.00027,120]
[340338629,1729066238782,-438.51725647,0.00018435,2]
[340338712,1729066843218,157.0,0.000201,120]
[340338713,1729066843990,157.0,0.0002347,120]
[340338714,1729066844799,157.0,0.0002684,120]
[340338723,1729067277025,-160.364944,0.00016099,2]
[340338724,1729067277053,-209.148325,0.00017412,2]
[340338725,1729067277081,-209.148325,0.00017459,2]
[340338726,1729067277107,-48.783381,0.00017507,2]
[340338727,1729067288281,-160.364944,0.00017507,2]
[340338728,1729067288311,-209.148325,0.00017555,2]
[340338729,1729067288338,-209.148325,0.00017603,2]
[340338730,1729067288364,-48.783381,0.0001765,2]
[340338733,1729067292744,-160.364944,0.0001765,2]
[340338734,1729067292886,-209.148325,0.00017698,2]
[340338736,1729067344268,430.850489,0.00017123,2]
[340338737,1729067401126,-209.148325,0.00017746,2]
[340338738,1729067401154,-209.148325,0.00017794,2]
[340338739,1729067401180,-209.148325,0.00017841,2]
[340338740,1729067401206,-209.148325,0.00017889,2]
[340338741,1729067401232,-209.148325,0.00017937,2]
[340338742,1729067401260,-209.148325,0.00017985,2]
[340338746,1729067417632,10000.0,0.00027,60]
[340338828,1729067440641,-300.0,0.00018026,2]
[340338829,1729067440651,-300.0,0.00018026,2]
[340338830,1729067440661,-2639.1,0.00018027,2]
[340338831,1729067440897,-6853.53405048,0.00018027,2]
[340338832,1729067440907,-209.148325,0.00018033,2]
[340338833,1729067440917,-209.148325,0.0001808,2]
[340338834,1729067440927,-209.148325,0.00018128,2]
[340338835,1729067440937,-7999.52254745,0.00018135,2]
[340338836,1729067440946,-209.148325,0.00018176,2]
[340338837,1729067440955,-157.0,0.0001818,7]
[340338838,1729067440964,-209.148325,0.00018224,2]
[340338839,1729067440974,-209.148325,0.00018271,2]
[340338840,1729067440984,-209.148325,0.00018319,2]
[340338841,1729067440993,-1134.58501423,0.00018379,2]
[340338842,1729067441003,-24900.0,0.00018379,2]
[340338843,1729067441013,-1204.721555,0.00018416,2]
[340338844,1729067441023,-153.0,0.00018986,2]
[340338845,1729067441033,-1000.0,0.00019,5]
[340338846,1729067441043,-232.8568762,0.00019,2]
[340338847,1729067441053,-5000.0,0.00019,2]
[340338848,1729067441062,-904.92834588,0.00019011,2]
[340338849,1729067441072,-1204.721555,0.00019101,2]
[340338850,1729067441084,-166.728086,0.00019178,2]
[340338851,1729067441094,-157.0,0.0001919,5]
[340338852,1729067441106,-151.0,0.00019364,2]
[340338853,1729067441116,-151.0,0.00019364,2]
[340338854,1729067441126,-2300.871114,0.00019364,2]
[340338855,1729067441135,-2300.871114,0.00019364,2]
[340338856,1729067441145,-151.0,0.00019364,2]
[340338857,1729067441154,-10000.0,0.00019364,2]
[340338858,1729067441163,-151.0,0.00019364,2]
[340338859,1729067441172,-10000.0,0.00019364,2]
[340338860,1729067441182,-151.0,0.00019364,2]
[340338861,1729067441191,-10000.0,0.00019364,2]
[340338862,1729067441201,-151.022685,0.00019403,2]
[340338863,1729067441211,-151.0,0.00019403,2]
[340338864,1729067441220,-151.0,0.00019403,2]
[340338865,1729067441229,-151.0,0.00019403,2]
[340338866,1729067441239,-234.689622,0.00019403,2]
[340338867,1729067441248,-234.689622,0.00019403,2]
[340338868,1729067441257,-312.22959,0.00019403,2]
[340338869,1729067441267,-312.22959,0.00019403,2]
[340338870,1729067441276,-800.107423,0.00019403,2]
[340338871,1729067441285,-800.107423,0.00019403,2]
[340338872,1729067441294,-151.0,0.00019403,2]
[340338873,1729067441304,-420.0,0.00019668,2]
[340338874,1729067441313,-292.37608735,0.00019776,2]
[340338875,1729067441323,-151.0,0.00019785,2]
[340338876,1729067441335,-216.755712,0.00019785,2]
[340338877,1729067441344,-151.0,0.00019785,2]
[340338878,1729067441354,-375.032269,0.00019785,2]
[340338879,1729067441363,-375.032269,0.00019785,2]
[340338880,1729067441373,-1204.721555,0.00019786,2]
[340338881,1729067441382,-292.37608732,0.0001979,2]
[340338882,1729067441391,-292.37608732,0.00019803,2]
[340338883,1729067441400,-292.37608732,0.00019817,2]
[340338884,1729067441410,-1303.99857279,0.00019821,2]
[340338885,1729067441419,-420.0,0.00019829,2]
[340338886,1729067441429,-292.37608732,0.0001983,2]
[340338887,1729067441438,-572.76,0.00019866,3]
[340338888,1729067441447,-286.38,0.00019866,3]
[340338889,1729067441456,-859.19,0.00019866,3]
[340338890,1729067441465,-340.77980234,0.00019875,2]
[340338891,1729067441475,-289.43394227,0.00019875,2]
[340338892,1729067441484,-500.0,0.00019875,2]
[340338893,1729067441493,-637.37758889,0.00019875,2]
[340338894,1729067441503,-403.48555303,0.00019875,2]
[340338895,1729067441512,-329.47192748,0.00019875,2]
[340338896,1729067441522,-370.51560138,0.00019875,2]
[340338897,1729067441533,-500.0,0.00019875,2]
[340338898,1729067441543,-500.0,0.00019875,2]
[340338899,1729067441553,-500.0,0.00019875,2]
[340338900,1729067441561,-500.0,0.00019875,2]
[340338901,1729067441570,-500.0,0.00019875,2]
[340338902,1729067441581,-500.0,0.00019875,2]
[340338903,1729067441590,-600.0,0.00019875,2]
[340338904,1729067441599,-500.0,0.00019875,2]
[340338905,1729067441609,-500.0,0.00019875,2]
[340338906,1729067441618,-500.0,0.00019875,2]
[340338907,1729067441628,-500.0,0.00019875,2]
[340338908,1729067441637,-500.0,0.00019875,2]
[340338909,1729067441646,-500.0,0.00019875,2]
[340338910,1729067441656,-500.0,0.00019875,2]
[340338911,1729067441665,-490.19510491,0.00019875,2]
[340338912,1729067441674,-499.99999999,0.00019875,2]
[340338913,1729067441683,-126636.872748,0.00019876,3]
[340338914,1729067441692,-190307.178645,0.00019876,3]
[340338915,1729067441702,-131469.53885347,0.00019886,2]
[340338916,1729067441711,-259.367136,0.00019886,2]
[340338917,1729067441720,-2300.871114,0.00019886,2]
[340338918,1729067441730,-2300.871114,0.00019886,2]
[340338919,1729067441739,-151.0,0.00019886,2]
[340338920,1729067441748,-10000.0,0.00019886,2]
[340338921,1729067441757,-151.0,0.00019886,2]
[340338922,1729067441766,-10000.0,0.00019886,2]
[340338923,1729067441775,-151.0,0.00019886,2]
[340338924,1729067441784,-10000.0,0.00019886,2]
[340338925,1729067441793,-300.0,0.000199,2]
[340338926,1729067441802,-42212.2909161,0.0001992,3]
[340338927,1729067441811,-63435.7262149,0.0001992,3]
[340338928,1729067441820,-687.32,0.00019921,3]
[340338929,1729067441832,-42212.2909161,0.00019929,3]
[340338930,1729067441842,-63435.7262149,0.00019929,3]
[340338931,1729067441850,-151.0,0.0001993,2]
[340338932,1729067441860,-699.900889,0.0001993,2]
[340338933,1729067441869,-699.900889,0.0001993,2]
[340338934,1729067441878,-151.0,0.0001993,2]
[340338935,1729067441887,-151.0,0.0001993,2]
[340338936,1729067441896,-151.0,0.0001993,2]
[340338937,1729067441908,-151.0,0.0001993,2]
[340338938,1729067441918,-21999.50839099,0.0001993,2]
[340338939,1729067441927,-163.995738,0.0001993,2]
[340338940,1729067441936,-163.995738,0.0001993,2]
[340338941,1729067441945,-163.995738,0.0001993,2]
[340338942,1729067441955,-163.995738,0.0001993,2]
[340338943,1729067441966,-163.995738,0.0001993,2]
[340338944,1729067441975,-163.995738,0.0001993,2]
[340338945,1729067441985,-181.793214,0.0001993,2]
[340338946,1729067441994,-181.793214,0.0001993,2]
[340338947,1729067442003,-234.689622,0.0001993,2]
[340338948,1729067442012,-234.689622,0.0001993,2]
[340338949,1729067442022,-234.689622,0.0001993,2]
[340338950,1729067442034,-234.689622,0.0001993,2]
[340338951,1729067442044,-234.689622,0.0001993,2]
[340338952,1729067442055,-234.689622,0.0001993,2]
[340338953,1729067442065,-312.22959,0.0001993,2]
[340338954,1729067442076,-312.22959,0.0001993,2]
[340338955,1729067442088,-312.22959,0.0001993,2]
[340338956,1729067442099,-151.0,0.0001993,2]
[340338957,1729067442109,-151.0,0.0001993,2]
[340338958,1729067442119,-151.0,0.0001993,2]
[340338959,1729067442130,-151.0,0.0001993,2]
[340338960,1729067442140,-312.22959,0.0001993,2]
[340338961,1729067442150,-312.22959,0.0001993,2]
[340338962,1729067442159,-312.22959,0.0001993,2]
[340338963,1729067442170,-800.107423,0.0001993,2]
[340338964,1729067442181,-800.107423,0.0001993,2]
[340338965,1729067442190,-800.107423,0.0001993,2]
[340338966,1729067442201,-800.107423,0.0001993,2]
[340338967,1729067442210,-800.107423,0.0001993,2]
[340338968,1729067442219,-800.107423,0.0001993,2]
[340338969,1729067442228,-2300.871114,0.0001993,2]
[340338970,1729067442240,-2300.871114,0.0001993,2]
[340338971,1729067442249,-2300.871114,0.0001993,2]
[340338972,1729067442258,-2300.871114,0.0001993,2]
[340338973,1729067442268,-2300.871114,0.0001993,2]
[340338974,1729067442278,-2300.871114,0.0001993,2]
[340338975,1729067442288,-2300.871114,0.0001993,2]
[340338976,1729067442297,-2300.871114,0.0001993,2]
[340338977,1729067442306,-151.0,0.0001993,2]
[340338978,1729067442315,-151.0,0.0001993,2]
[340338979,1729067442324,-151.0,0.0001993,2]
[340338980,1729067442335,-151.0,0.0001993,2]
[340338981,1729067442344,-10000.0,0.0001993,2]
[340338982,1729067442353,-10000.0,0.0001993,2]
[340338983,1729067442363,-10000.0,0.0001993,2]
[340338984,1729067442373,-10000.0,0.0001993,2]
[340338985,1729067442383,-151.0,0.0001993,2]
[340338986,1729067442393,-151.0,0.0001993,2]
[340338987,1729067442402,-151.0,0.0001993,2]
[340338988,1729067442411,-151.0,0.0001993,2]
[340338989,1729067442421,-10000.0,0.0001993,2]
[340338990,1729067442430,-10000.0,0.0001993,2]
[340338991,1729067442440,-151.0,0.0001993,2]
[340338992,1729067442450,-10000.0,0.0001993,2]
[340338993,1729067442459,-10000.0,0.0001993,2]
[340338994,1729067442469,-151.0,0.0001993,2]
[340338995,1729067442478,-375.032269,0.0001993,2]
[340338996,1729067442489,-151.0,0.0001993,2]
[340338997,1729067442499,-375.032269,0.0001993,2]
[340338998,1729067442508,-151.0,0.0001993,2]
[340338999,1729067442520,-375.032269,0.0001993,2]
[340339000,1729067442529,-151.0,0.0001993,2]
[340339001,1729067442543,-375.032269,0.0001993,2]
[340339002,1729067442553,-10000.0,0.0001993,2]
[340339003,1729067442562,-7872.196906,0.0001993,2]
[340339004,1729067442573,-375.032269,0.0001993,2]
[340339005,1729067442585,-42212.2909161,0.00019931,3]
[340339006,1729067442594,-63435.7262149,0.00019931,3]
[340339007,1729067442604,-42212.2909161,0.00019931,3]
[340339008,1729067442614,-3000.0,0.0001994,2]
[340339009,1729067442623,-699.900889,0.0001994,2]
[340339010,1729067442633,-3000.0,0.0001994,2]
[340339011,1729067442642,-3000.0,0.0001994,2]
[340339012,1729067442651,-699.900889,0.0001994,2]
[340339013,1729067442661,-699.900889,0.0001994,2]
[340339014,1729067442670,-699.900889,0.0001994,2]
[340339015,1729067442679,-151.0,0.0001994,2]
[340339016,1729067442690,-228.025275,0.0001994,2]
[340339017,1729067442699,-163.995738,0.0001994,2]
[340339018,1729067442708,-163.995738,0.0001994,2]
[340339019,1729067442718,-163.995738,0.0001994,2]
[340339020,1729067442727,-163.995738,0.0001994,2]
[340339021,1729067442736,-181.793214,0.0001994,2]
[340339022,1729067442745,-181.793214,0.0001994,2]
[340339023,1729067442756,-181.793214,0.0001994,2]
[340339024,1729067442765,-181.793214,0.0001994,2]
[340339025,1729067442774,-234.689622,0.0001994,2]
[340339026,1729067442783,-234.689622,0.0001994,2]
[340339027,1729067442793,-234.689622,0.0001994,2]
[340339028,1729067442802,-234.689622,0.0001994,2]
[340339029,1729067442811,-234.689622,0.0001994,2]
[340339030,1729067442820,-234.689622,0.0001994,2]
[340339031,1729067442830,-312.22959,0.0001994,2]
[340339032,1729067442839,-312.22959,0.0001994,2]
[340339033,1729067442850,-312.22959,0.0001994,2]
[340339034,1729067442860,-151.0,0.0001994,2]
[340339035,1729067442869,-151.0,0.0001994,2]
[340339036,1729067442880,-151.0,0.0001994,2]
[340339037,1729067442890,-312.22959,0.0001994,2]
[340339038,1729067442901,-312.22959,0.0001994,2]
[340339039,1729067442911,-312.22959,0.0001994,2]
[340339040,1729067442921,-800.107423,0.0001994,2]
[340339041,1729067442931,-800.107423,0.0001994,2]
[340339042,1729067443046,-800.107423,0.0001994,2]
[340339043,1729067443056,-800.107423,0.0001994,2]
[340339044,1729067443065,-800.107423,0.0001994,2]
[340339045,1729067443074,-800.107423,0.0001994,2]
[340339047,1729067443086,-2300.871114,0.0001994,2]
[340339048,1729067443095,-2300.871114,0.0001994,2]
[340339049,1729067443104,-2300.871114,0.0001994,2]
[340339050,1729067443114,-2300.871114,0.0001994,2]
[340339051,1729067443123,-2300.871114,0.0001994,2]
[340339052,1729067443133,-2300.871114,0.0001994,2]
[340339053,1729067443143,-151.0,0.0001994,2]
[340339054,1729067443152,-151.0,0.0001994,2]
[340339055,1729067443162,-151.0,0.0001994,2]
[340339056,1729067443172,-10000.0,0.0001994,2]
[340339057,1729067443182,-10000.0,0.0001994,2]
[340339058,1729067443191,-10000.0,0.0001994,2]
[340339059,1729067443200,-151.0,0.0001994,2]
[340339061,1729067443210,-151.0,0.0001994,2]
[340339062,1729067443220,-151.0,0.0001994,2]
[340339065,1729067443229,-10000.0,0.0001994,2]
[340339067,1729067443239,-10000.0,0.0001994,2]
[340339070,1729067443248,-10000.0,0.0001994,2]
[340339072,1729067443257,-151.0,0.0001994,2]
[340339074,1729067443266,-179.138425,0.0001994,2]
[340339075,1729067443277,-375.032269,0.0001994,2]
[340339076,1729067443286,-375.032269,0.0001994,2]
[340339077,1729067443296,-375.032269,0.0001994,2]
[340339078,1729067443305,-151.0,0.00019941,2]
[340339079,1729067443314,-151.0,0.00019941,2]
[340339080,1729067443323,-151.0,0.00019941,2]
[340339081,1729067443334,-255.79043,0.00019941,2]
[340339083,1729067443343,-255.79043,0.00019941,2]
[340339084,1729067443352,-255.79043,0.00019941,2]
[340339085,1729067443361,-469.351077,0.00019941,2]
[340339086,1729067443370,-255.79043,0.00019941,2]
[340339087,1729067443379,-469.351077,0.00019941,2]
[340339088,1729067443388,-276.408461,0.00019941,2]
[340339090,1729067443397,-276.408461,0.00019941,2]
[340339091,1729067443406,-469.351077,0.00019941,2]
[340339092,1729067443415,-469.351077,0.00019941,2]
[340339093,1729067443424,-276.408461,0.00019941,2]
[340339094,1729067443434,-276.408461,0.00019941,2]
[340339095,1729067443443,-284.823924,0.00019941,2]
[340339097,1729067443453,-284.823924,0.00019941,2]
[340339098,1729067443462,-151.0,0.00019941,2]
[340339099,1729067443471,-284.823924,0.00019941,2]
[340339100,1729067443481,-284.823924,0.00019941,2]
[340339101,1729067443490,-591.74187,0.00019941,2]
[340339102,1729067443499,-591.74187,0.00019941,2]
[340339103,1729067443508,-908.080826,0.00019941,2]
[340339104,1729067443519,-908.080826,0.00019941,2]
[340339105,1729067443529,-591.74187,0.00019941,2]
[340339106,1729067443541,-591.74187,0.00019941,2]
[340339107,1729067443550,-908.080826,0.00019941,2]
[340339108,1729067443560,-908.080826,0.00019941,2]
[340339110,1729067443570,-3439.388743,0.00019941,2]
[340339111,1729067443579,-3439.388743,0.00019941,2]
[340339112,1729067443589,-3439.388743,0.00019941,2]
[340339113,1729067443598,-3439.388743,0.00019941,2]
[340339114,1729067443609,-699.900889,0.00019941,2]
[340339115,1729067443619,-699.900889,0.00019941,2]
[340339116,1729067443628,-699.900889,0.00019941,2]
[340339117,1729067443637,-699.900889,0.00019941,2]
[340339118,1729067443646,-699.900889,0.00019941,2]
[340339119,1729067443655,-699.900889,0.00019941,2]
[340339120,1729067443664,-151.0,0.00019941,2]
[340339121,1729067443673,-151.0,0.00019941,2]
[340339122,1729067443682,-395.1611,0.00019941,2]
[340339123,1729067443691,-395.1611,0.00019941,2]
[340339124,1729067443701,-395.1611,0.00019941,2]
[340339125,1729067443710,-395.1611,0.00019941,2]
[340339126,1729067443719,-163.995738,0.00019941,2]
[340339127,1729067443729,-163.995738,0.00019941,2]
[340339128,1729067443738,-163.995738,0.00019941,2]
[340339129,1729067443749,-163.995738,0.00019941,2]
[340339130,1729067443759,-163.995738,0.00019941,2]
[340339131,1729067443768,-163.995738,0.00019941,2]
[340339132,1729067443777,-163.995738,0.00019941,2]
[340339133,1729067443786,-163.995738,0.00019941,2]
[340339134,1729067443795,-181.793214,0.00019941,2]
[340339135,1729067443804,-181.793214,0.00019941,2]
[340339136,1729067443813,-181.793214,0.00019941,2]
[340339137,1729067443822,-181.793214,0.00019941,2]
[340339138,1729067443833,-181.793214,0.00019941,2]
[340339139,1729067443842,-181.793214,0.00019941,2]
[340339140,1729067443852,-618.020539,0.00019941,2]
[340339141,1729067443861,-618.020539,0.00019941,2]
[340339142,1729067443870,-618.020539,0.00019941,2]
[340339143,1729067443880,-618.020539,0.00019941,2]
[340339144,1729067443889,-234.689622,0.00019941,2]
[340339145,1729067443901,-234.689622,0.00019941,2]
[340339146,1729067443910,-234.689622,0.00019941,2]
[340339147,1729067443920,-234.689622,0.00019941,2]
[340339148,1729067443930,-234.689622,0.00019941,2]
[340339149,1729067443941,-234.68962,0.00019941,2]
[340339150,1729067443950,-961.152024,0.00019941,2]
[340339151,1729067443959,-961.152024,0.00019941,2]
[340339152,1729067443970,-961.152024,0.00019941,2]
[340339153,1729067443981,-961.152024,0.00019941,2]
[340339154,1729067443990,-312.22959,0.00019941,2]
[340339155,1729067444001,-312.22959,0.00019941,2]
[340339156,1729067444011,-312.22959,0.00019941,2]
[340339157,1729067444021,-151.0,0.00019941,2]
[340339158,1729067444031,-151.0,0.00019941,2]
[340339159,1729067444041,-312.22959,0.00019941,2]
[340339160,1729067444052,-312.22959,0.00019941,2]
[340339161,1729067444063,-312.229592,0.00019941,2]
[340339162,1729067444072,-800.107423,0.00019941,2]
[340339163,1729067444083,-800.107423,0.00019941,2]
[340339164,1729067444092,-800.107423,0.00019941,2]
[340339165,1729067444102,-800.107423,0.00019941,2]
[340339166,1729067444112,-800.107423,0.00019941,2]
[340339167,1729067444121,-800.107423,0.00019941,2]
[340339168,1729067444132,-2300.871114,0.00019941,2]
[340339169,1729067444142,-2300.871124,0.00019941,2]
[340339170,1729067444152,-151.0,0.00019941,2]
[340339171,1729067444161,-151.0,0.00019941,2]
[340339172,1729067444171,-10000.0,0.00019941,2]
[340339173,1729067444184,-151.0,0.00019941,2]
[340339174,1729067444193,-10000.0,0.00019941,2]
[340339175,1729067444203,-375.032269,0.00019941,2]
[340339176,1729067444211,-375.032269,0.00019941,2]
[340339177,1729067444221,-306.0,0.00019945,2]
[340339178,1729067444230,-176.804834,0.0001995,2]
[340339179,1729067444241,-255.79043,0.0001995,2]
[340339180,1729067444250,-255.79043,0.0001995,2]
[340339181,1729067444258,-255.79043,0.0001995,2]
[340339182,1729067444270,-469.351077,0.0001995,2]
[340339183,1729067444280,-255.79043,0.0001995,2]
[340339184,1729067444290,-469.351077,0.0001995,2]
[340339185,1729067444300,-276.408461,0.0001995,2]
[340339186,1729067444309,-276.408461,0.0001995,2]
[340339187,1729067444318,-469.351077,0.0001995,2]
[340339188,1729067444328,-469.351077,0.0001995,2]
[340339189,1729067444341,-276.408461,0.0001995,2]
[340339190,1729067444350,-276.408461,0.0001995,2]
[340339191,1729067444359,-284.823924,0.0001995,2]
[340339192,1729067444368,-284.823924,0.0001995,2]
[340339193,1729067444378,-284.823924,0.0001995,2]
[340339194,1729067444388,-284.823924,0.0001995,2]
[340339195,1729067444397,-591.74187,0.0001995,2]
[340339196,1729067444406,-591.74187,0.0001995,2]
[340339197,1729067444415,-908.080826,0.0001995,2]
[340339198,1729067444424,-908.080826,0.0001995,2]
[340339199,1729067444434,-591.74187,0.0001995,2]
[340339200,1729067444443,-591.74187,0.0001995,2]
[340339201,1729067444452,-908.080826,0.0001995,2]
[340339202,1729067444462,-908.080826,0.0001995,2]
[340339203,1729067444471,-3439.388743,0.0001995,2]
[340339204,1729067444481,-3439.388743,0.0001995,2]
[340339205,1729067444490,-3439.388743,0.0001995,2]
[340339206,1729067444499,-3439.388743,0.0001995,2]
[340339207,1729067444508,-699.900889,0.0001995,2]
[340339208,1729067444517,-699.900889,0.0001995,2]
[340339209,1729067444528,-699.900889,0.0001995,2]
[340339210,1729067444541,-699.900889,0.0001995,2]
[340339211,1729067444550,-151.0,0.0001995,2]
[340339212,1729067444559,-395.1611,0.0001995,2]
[340339213,1729067444568,-395.1611,0.0001995,2]
[340339214,1729067444578,-395.1611,0.0001995,2]
[340339215,1729067444594,-395.1611,0.0001995,2]
[340339216,1729067444603,-163.995738,0.0001995,2]
[340339217,1729067444613,-163.995733,0.0001995,2]
[340339218,1729067444622,-181.793214,0.0001995,2]
[340339219,1729067444631,-181.793214,0.0001995,2]
[340339220,1729067444641,-181.793214,0.0001995,2]
[340339221,1729067444650,-181.793214,0.0001995,2]
[340339222,1729067444659,-618.020539,0.0001995,2]
[340339223,1729067444669,-618.020539,0.0001995,2]
[340339224,1729067444678,-618.020539,0.0001995,2]
[340339225,1729067444688,-618.020539,0.0001995,2]
[340339226,1729067444697,-961.152024,0.0001995,2]
[340339227,1729067444706,-961.152024,0.0001995,2]
[340339228,1729067444717,-961.152024,0.0001995,2]
[340339229,1729067444726,-961.152024,0.0001995,2]
[340339230,1729067444736,-699.900889,0.00019961,2]
[340339231,1729067444745,-699.900889,0.00019961,2]
[340339232,1729067444755,-699.900889,0.00019961,2]
[340339233,1729067444764,-699.900895,0.00019961,2]
[340339234,1729067444773,-181.793214,0.00019961,2]
[340339235,1729067444782,-181.793214,0.00019961,2]
[340339236,1729067444791,-181.793214,0.00019961,2]